Workbook

Sheet Instruções
C3: SIMULADOR DE CUSTOS COM RECURSOS HUMANOS
C4: Instruções
H6: Versão | I6: 2023-11-08
B8: Para que o simulador funcione corretamente, é necessário seguir os seguintes passos:
B10: 1. Depois de descarregar o ficheiro, desbloquer o mesmo.
B33: 2. Abrir o ficheiro e clicar em "Ativar Edição".

Sheet Contrato de Trabalho
C3: SIMULADOR DE CUSTOS COM RECURSOS HUMANOS
C4: Contrato de Trabalho
O6: Versão | P6: 2024-01-26
B8: Pressupostos de Contratação
B10: Tipo de Termo | C10: Certo
B12: Nos termos do Art.º 60º da Lei Geral do Trabalho em Funções Públicas (LTFP):
B13: 1. O contrato a termo certo dura até 3 anos (36 meses), incluido renovações. Este contrato não pode ser renovado mais do que 2 vezes.
B14: 2. O contrato a termo incerto dura por todo o tempo necessário para a substituição do trabalhador ausente ou para a conclusão da tarefa ou serviço cuja execução justifica a celebração.
B16: Duração (meses) | C16: 24
B18: Categoria Profissional | C18: Tecnico Superior
B20: Nos termos do Art.º 88º da LTFP, as carreiras gerais são as de Técnico Superior, de Assistente Técnico, e de Assistente Operacional.
B21: Nos termos do Art.º 86º e do ponto 2 do Art.º 88º, ambos da LTFP:
B22: 1. Os Técnicos Superiores são titulares de licenciatura ou de grau académico superior a esta; e auferem, no minimo, ao equivalente à posição 16 da Tabela Remuneratória Única.
B23: 2. Os Assistentes Técnicos são titulares do 12.º ano de escolaridade ou de curso equiparado; e auferem, no minimo, ao equivalente à posição 6 da Tabela Remuneratória Única.
B25: Tem ou Terá Grau de Doutor? | C25: Nao
B27: Nos termos do Art.º 39º - B da LTFP, os Técnicos Superiores que tenham ou venham a ter o grau de doutor auferem o equivalente ao nivel 23 da Tabela Remuneratória Única; ou, caso já aufiram o equivalente ao referido nível, passam a estar enquadrados na posição imediatamente seguinte àquela em que se encontra.
B29: Posição Remuneratória | C29: 16 - 1385,99 | G29: =INT(LEFT(C29,(FIND(" ",C29,1)-1))) -> 16
B31: Data de Início (Mês/Ano) | C31: 2024-01-01
B33: Taxa de IRS | C33: 0.07
B35: Segurança Social - Funcionário | C35: 0.11
B37: A Taxa de IRS deverá ser preenchida conforme a aplicável para o trabalhador. Neste contexto poderão ser consultadas as tabelas em vigor aqui: https://info.portaldasfinancas.gov.pt/pt/apoio_contribuinte/tabela_ret_doclib/Pages/default.aspx
B39: Estimativas
B41: Para o contrato a termo incerto, é apresentada a estimativa para um ano completo de contrato.
B42: O Seguro de Acidentes de Trabalho foi assumido como sendo 2% do Vencimento Base, no entanto esse valor poderá variar conforme as condições de mercado.
B44: Data | C44: Vencimento Base | D44: Subsídio de Alimentação | E44: Renumeração Complementar | G44: Subsídio de Natal | I44: Subsídio de Férias | J44: Compensação Termo Contrato | K44: Encargos Seg. Social | L44: Seguro de Ac. de Trabalho | N44: IRS Retido | O44: Segurança Social | P44: Vencimento Líquido
C45: CE 010106D000 | D45: CE 010113D000 | E45: CE 010213RC00 | G45: CE 010114SNDO | I45: CE 010114SFDO | J45: CE 010212 | K45: CE 010305A0B0 | L45: CE 010309
A47: 1 | B47: =C31 -> 2024-01-01 | C47: =IF(A47<=$C$16,INDEX('CT - Tabela'!$C$5:$C$119,MATCH($G$29,'CT - Tabela'!$B$5:$B$119,0)),0) -> 1385.99 | D47: =IF(AND(A47<=$C$16,MONTH(B47)<>6),22*6,0) -> 132 | E47: =IF(A47<=$C$16,INDEX('CT - Tabela'!$D$5:$D$119,MATCH($G$29,'CT - Tabela'!$B$5:$B$119,0)),0) -> 20.11 | F47: =(C47+E47)/30*(2.5*COUNT($B$47:B47)) -> 117.175 | G47: =IF(SUM($J$47:$J$58)=0,IF(MONTH(B47)=11,$F$58,0),IF(J47=0,0,F47)) -> 0 | H47: =(C47+E47)/30*(2.5*COUNT($B$47:B47)) -> 117.175 | I47: =IF(SUM($J$47:$J$58)=0,IF(MONTH(B47)=6,$H$58,0),IF(J47=0,0,H47)) -> 0 | J47: =IF(A47=$C$16,C47/30*2*fldDuracao,0) -> 0 | K47: =(C47+E47+G47+I47)*22.3% -> 313.5603 | L47: =1%*C47 -> 13.8599 | M47: =YEAR(B47) -> 2024 | N47: =((C47+E47+G47+I47+IF(J47>6500,J47-6500,0))*$C$33) -> 98.427 | O47: =(C47+E47+G47+I47)*$C$35 -> 154.671 | P47: =SUM(C47:J47)-SUM(N47:O47) -> 1519.352
A48: =+A47+1 -> 2 | B48: =DATE(YEAR(B47),MONTH(B47)+1,DAY(B47)) -> 2024-02-01 | C48: =IF(A48<=$C$16,INDEX('CT - Tabela'!$C$5:$C$119,MATCH($G$29,'CT - Tabela'!$B$5:$B$119,0)),0) -> 1385.99 | D48: =IF(AND(A48<=$C$16,MONTH(B48)<>6),22*6,0) -> 132 | E48: =IF(A48<=$C$16,INDEX('CT - Tabela'!$D$5:$D$119,MATCH($G$29,'CT - Tabela'!$B$5:$B$119,0)),0) -> 20.11 | F48: =(C48+E48)/30*(2.5*COUNT($B$47:B48)) -> 234.35 | G48: =IF(SUM($J$47:$J$58)=0,IF(MONTH(B48)=11,$F$58,0),IF(J48=0,0,F48)) -> 0 | H48: =(C48+E48)/30*(2.5*COUNT($B$47:B48)) -> 234.35 | I48: =IF(SUM($J$47:$J$58)=0,IF(MONTH(B48)=6,$H$58,0),IF(J48=0,0,H48)) -> 0 | J48: 0 | K48: =(C48+E48+G48+I48)*22.3% -> 313.5603 | L48: 13.8599 | M48: =YEAR(B48) -> 2024 | N48: =((C48+E48+G48+I48+IF(J48>6500,J48-6500,0))*$C$33) -> 98.427 | O48: =(C48+E48+G48+I48)*$C$35 -> 154.671 | P48: =SUM(C48:J48)-SUM(N48:O48) -> 1753.702
A49: =+A48+1 -> 3 | B49: =DATE(YEAR(B48),MONTH(B48)+1,DAY(B48)) -> 2024-03-01 | C49: =IF(A49<=$C$16,INDEX('CT - Tabela'!$C$5:$C$119,MATCH($G$29,'CT - Tabela'!$B$5:$B$119,0)),0) -> 1385.99 | D49: 132 | E49: =IF(A49<=$C$16,INDEX('CT - Tabela'!$D$5:$D$119,MATCH($G$29,'CT - Tabela'!$B$5:$B$119,0)),0) -> 20.11 | F49: =(C49+E49)/30*(2.5*COUNT($B$47:B49)) -> 351.525 | G49: 0 | H49: =(C49+E49)/30*(2.5*COUNT($B$47:B49)) -> 351.525 | I49: 0 | J49: 0 | K49: 313.5603 | L49: 13.8599 | M49: 2024 | N49: 98.427 | O49: 154.671 | P49: 1988.052
A50: 4 | B50: 2024-04-01 | C50: =IF(A50<=$C$16,INDEX('CT - Tabela'!$C$5:$C$119,MATCH($G$29,'CT - Tabela'!$B$5:$B$119,0)),0) -> 1385.99 | D50: 132 | E50: =IF(A50<=$C$16,INDEX('CT - Tabela'!$D$5:$D$119,MATCH($G$29,'CT - Tabela'!$B$5:$B$119,0)),0) -> 20.11 | F50: =(C50+E50)/30*(2.5*COUNT($B$47:B50)) -> 468.7 | G50: 0 | H50: =(C50+E50)/30*(2.5*COUNT($B$47:B50)) -> 468.7 | I50: 0 | J50: 0 | K50: 313.5603 | L50: 13.8599 | M50: 2024 | N50: 98.427 | O50: 154.671 | P50: 2222.402
A51: 5 | B51: 2024-05-01 | C51: =IF(A51<=$C$16,INDEX('CT - Tabela'!$C$5:$C$119,MATCH($G$29,'CT - Tabela'!$B$5:$B$119,0)),0) -> 1385.99 | D51: 132 | E51: =IF(A51<=$C$16,INDEX('CT - Tabela'!$D$5:$D$119,MATCH($G$29,'CT - Tabela'!$B$5:$B$119,0)),0) -> 20.11 | F51: =(C51+E51)/30*(2.5*COUNT($B$47:B51)) -> 585.875 | G51: 0 | H51: =(C51+E51)/30*(2.5*COUNT($B$47:B51)) -> 585.875 | I51: 0 | J51: 0 | K51: 313.5603 | L51: 13.8599 | M51: 2024 | N51: 98.427 | O51: 154.671 | P51: 2456.752
A52: 6 | B52: 2024-06-01 | C52: =IF(A52<=$C$16,INDEX('CT - Tabela'!$C$5:$C$119,MATCH($G$29,'CT - Tabela'!$B$5:$B$119,0)),0) -> 1385.99 | D52: 0 | E52: =IF(A52<=$C$16,INDEX('CT - Tabela'!$D$5:$D$119,MATCH($G$29,'CT - Tabela'!$B$5:$B$119,0)),0) -> 20.11 | F52: =(C52+E52)/30*(2.5*COUNT($B$47:B52)) -> 703.05 | G52: 0 | H52: =(C52+E52)/30*(2.5*COUNT($B$47:B52)) -> 703.05 | I52: 1406.1 | J52: 0 | K52: 627.1206 | L52: 13.8599 | M52: 2024 | N52: 196.854 | O52: 309.342 | P52: 3712.104
A53: 7 | B53: 2024-07-01 | C53: =IF(A53<=$C$16,INDEX('CT - Tabela'!$C$5:$C$119,MATCH($G$29,'CT - Tabela'!$B$5:$B$119,0)),0) -> 1385.99 | D53: 132 | E53: =IF(A53<=$C$16,INDEX('CT - Tabela'!$D$5:$D$119,MATCH($G$29,'CT - Tabela'!$B$5:$B$119,0)),0) -> 20.11 | F53: =(C53+E53)/30*(2.5*COUNT($B$47:B53)) -> 820.225 | G53: 0 | H53: =(C53+E53)/30*(2.5*COUNT($B$47:B53)) -> 820.225 | I53: 0 | J53: 0 | K53: 313.5603 | L53: =1%*C53 -> 13.8599 | M53: 2024 | N53: 98.427 | O53: 154.671 | P53: 2925.452
A54: 8 | B54: 2024-08-01 | C54: =IF(A54<=$C$16,INDEX('CT - Tabela'!$C$5:$C$119,MATCH($G$29,'CT - Tabela'!$B$5:$B$119,0)),0) -> 1385.99 | D54: 132 | E54: =IF(A54<=$C$16,INDEX('CT - Tabela'!$D$5:$D$119,MATCH($G$29,'CT - Tabela'!$B$5:$B$119,0)),0) -> 20.11 | F54: =(C54+E54)/30*(2.5*COUNT($B$47:B54)) -> 937.4 | G54: 0 | H54: =(C54+E54)/30*(2.5*COUNT($B$47:B54)) -> 937.4 | I54: 0 | J54: 0 | K54: 313.5603 | L54: 13.8599 | M54: 2024 | N54: 98.427 | O54: 154.671 | P54: 3159.802
A55: 9 | B55: 2024-09-01 | C55: =IF(A55<=$C$16,INDEX('CT - Tabela'!$C$5:$C$119,MATCH($G$29,'CT - Tabela'!$B$5:$B$119,0)),0) -> 1385.99 | D55: 132 | E55: =IF(A55<=$C$16,INDEX('CT - Tabela'!$D$5:$D$119,MATCH($G$29,'CT - Tabela'!$B$5:$B$119,0)),0) -> 20.11 | F55: =(C55+E55)/30*(2.5*COUNT($B$47:B55)) -> 1054.575 | G55: 0 | H55: =(C55+E55)/30*(2.5*COUNT($B$47:B55)) -> 1054.575 | I55: 0 | J55: 0 | K55: 313.5603 | L55: 13.8599 | M55: 2024 | N55: 98.427 | O55: 154.671 | P55: 3394.152
A56: 10 | B56: 2024-10-01 | C56: =IF(A56<=$C$16,INDEX('CT - Tabela'!$C$5:$C$119,MATCH($G$29,'CT - Tabela'!$B$5:$B$119,0)),0) -> 1385.99 | D56: 132 | E56: =IF(A56<=$C$16,INDEX('CT - Tabela'!$D$5:$D$119,MATCH($G$29,'CT - Tabela'!$B$5:$B$119,0)),0) -> 20.11 | F56: =(C56+E56)/30*(2.5*COUNT($B$47:B56)) -> 1171.75 | G56: 0 | H56: =(C56+E56)/30*(2.5*COUNT($B$47:B56)) -> 1171.75 | I56: 0 | J56: 0 | K56: 313.5603 | L56: 13.8599 | M56: 2024 | N56: 98.427 | O56: 154.671 | P56: 3628.502
A57: 11 | B57: 2024-11-01 | C57: =IF(A57<=$C$16,INDEX('CT - Tabela'!$C$5:$C$119,MATCH($G$29,'CT - Tabela'!$B$5:$B$119,0)),0) -> 1385.99 | D57: 132 | E57: =IF(A57<=$C$16,INDEX('CT - Tabela'!$D$5:$D$119,MATCH($G$29,'CT - Tabela'!$B$5:$B$119,0)),0) -> 20.11 | F57: =(C57+E57)/30*(2.5*COUNT($B$47:B57)) -> 1288.925 | G57: 1406.1 | H57: =(C57+E57)/30*(2.5*COUNT($B$47:B57)) -> 1288.925 | I57: 0 | J57: 0 | K57: 627.1206 | L57: 13.8599 | M57: 2024 | N57: 196.854 | O57: 309.342 | P57: 5015.854
A58: 12 | B58: 2024-12-01 | C58: =IF(A58<=$C$16,INDEX('CT - Tabela'!$C$5:$C$119,MATCH($G$29,'CT - Tabela'!$B$5:$B$119,0)),0) -> 1385.99 | D58: 132 | E58: =IF(A58<=$C$16,INDEX('CT - Tabela'!$D$5:$D$119,MATCH($G$29,'CT - Tabela'!$B$5:$B$119,0)),0) -> 20.11 | F58: =(C58+E58)/30*(2.5*COUNT($B$47:B58)) -> 1406.1 | G58: 0 | H58: =(C58+E58)/30*(2.5*COUNT($B$47:B58)) -> 1406.1 | I58: 0 | J58: 0 | K58: 313.5603 | L58: 13.8599 | M58: 2024 | N58: 98.427 | O58: 154.671 | P58: 4097.202
B60: Total Ano 1 | C60: =SUM(C47:C58) -> 16631.88 | D60: =SUM(D47:D58) -> 1452 | E60: =SUM(E47:E58) -> 241.32 | G60: 1406.1 | I60: 1406.1 | J60: 0 | K60: 4389.8442 | L60: =SUM(L47:L58) -> 166.3188 | N60: 1377.978 | O60: 2165.394 | P60: 35873.328
A62: =+A58+1 -> 13 | B62: =DATE(YEAR(B58),MONTH(B58)+1,DAY(B58)) -> 2025-01-01 | C62: =IF(A62<=$C$16,INDEX('CT - Tabela'!$C$5:$C$119,MATCH($G$29,'CT - Tabela'!$B$5:$B$119,0)),0) -> 1385.99 | D62: =IF(AND(A62<=$C$16,MONTH(B62)<>6),22*6,0) -> 132 | E62: =IF(A62<=$C$16,INDEX('CT - Tabela'!$D$5:$D$119,MATCH($G$29,'CT - Tabela'!$B$5:$B$119,0)),0) -> 20.11 | F62: =(C62+E62)/30*(2.5*COUNT($B$62:B62)) -> 117.175 | G62: =IF(SUM($J$62:$J$73)=0,IF(MONTH(B62)=11,$F$73,0),IF(J62=0,0,F62)) -> 0 | H62: =(C62+E62)/30*(2.5*COUNT($B$62:B62)) -> 117.175 | I62: =IF(SUM($J$62:$J$73)=0,IF(MONTH(B62)=6,$H$73,0),IF(J62=0,0,H62)) -> 0 | J62: =IF(A62=$C$16,C62/30*2*fldDuracao,0) -> 0 | K62: =(C62+E62+G62+I62)*22.3% -> 313.5603 | L62: =1%*C62 -> 13.8599 | M62: =YEAR(B62) -> 2025 | N62: =((C62+E62+G62+I62+IF(J62>6500,J62-6500,0))*$C$33) -> 98.427 | O62: =(C62+E62+G62+I62)*$C$35 -> 154.671 | P62: =SUM(C62:J62)-SUM(N62:O62) -> 1519.352
A63: =+A62+1 -> 14 | B63: =DATE(YEAR(B62),MONTH(B62)+1,DAY(B62)) -> 2025-02-01 | C63: =IF(A63<=$C$16,INDEX('CT - Tabela'!$C$5:$C$119,MATCH($G$29,'CT - Tabela'!$B$5:$B$119,0)),0) -> 1385.99 | D63: =IF(AND(A63<=$C$16,MONTH(B63)<>6),22*6,0) -> 132 | E63: =IF(A63<=$C$16,INDEX('CT - Tabela'!$D$5:$D$119,MATCH($G$29,'CT - Tabela'!$B$5:$B$119,0)),0) -> 20.11 | F63: =(C63+E63)/30*(2.5*COUNT($B$62:B63)) -> 234.35 | G63: =IF(SUM($J$62:$J$73)=0,IF(MONTH(B63)=11,$F$73,0),IF(J63=0,0,F63)) -> 0 | H63: =(C63+E63)/30*(2.5*COUNT($B$62:B63)) -> 234.35 | I63: =IF(SUM($J$62:$J$73)=0,IF(MONTH(B63)=6,$H$73,0),IF(J63=0,0,H63)) -> 0 | J63: 0 | K63: 313.5603 | L63: =1%*C63 -> 13.8599 | M63: =YEAR(B63) -> 2025 | N63: 98.427 | O63: 154.671 | P63: 1753.702
A64: =+A63+1 -> 15 | B64: =DATE(YEAR(B63),MONTH(B63)+1,DAY(B63)) -> 2025-03-01 | C64: =IF(A64<=$C$16,INDEX('CT - Tabela'!$C$5:$C$119,MATCH($G$29,'CT - Tabela'!$B$5:$B$119,0)),0) -> 1385.99 | D64: 132 | E64: =IF(A64<=$C$16,INDEX('CT - Tabela'!$D$5:$D$119,MATCH($G$29,'CT - Tabela'!$B$5:$B$119,0)),0) -> 20.11 | F64: =(C64+E64)/30*(2.5*COUNT($B$62:B64)) -> 351.525 | G64: 0 | H64: =(C64+E64)/30*(2.5*COUNT($B$62:B64)) -> 351.525 | I64: 0 | J64: 0 | K64: 313.5603 | L64: 13.8599 | M64: 2025 | N64: 98.427 | O64: 154.671 | P64: 1988.052
A65: 16 | B65: 2025-04-01 | C65: =IF(A65<=$C$16,INDEX('CT - Tabela'!$C$5:$C$119,MATCH($G$29,'CT - Tabela'!$B$5:$B$119,0)),0) -> 1385.99 | D65: 132 | E65: =IF(A65<=$C$16,INDEX('CT - Tabela'!$D$5:$D$119,MATCH($G$29,'CT - Tabela'!$B$5:$B$119,0)),0) -> 20.11 | F65: =(C65+E65)/30*(2.5*COUNT($B$62:B65)) -> 468.7 | G65: 0 | H65: =(C65+E65)/30*(2.5*COUNT($B$62:B65)) -> 468.7 | I65: 0 | J65: 0 | K65: 313.5603 | L65: 13.8599 | M65: 2025 | N65: 98.427 | O65: 154.671 | P65: 2222.402
A66: 17 | B66: 2025-05-01 | C66: =IF(A66<=$C$16,INDEX('CT - Tabela'!$C$5:$C$119,MATCH($G$29,'CT - Tabela'!$B$5:$B$119,0)),0) -> 1385.99 | D66: 132 | E66: =IF(A66<=$C$16,INDEX('CT - Tabela'!$D$5:$D$119,MATCH($G$29,'CT - Tabela'!$B$5:$B$119,0)),0) -> 20.11 | F66: =(C66+E66)/30*(2.5*COUNT($B$62:B66)) -> 585.875 | G66: 0 | H66: =(C66+E66)/30*(2.5*COUNT($B$62:B66)) -> 585.875 | I66: 0 | J66: 0 | K66: 313.5603 | L66: 13.8599 | M66: 2025 | N66: 98.427 | O66: 154.671 | P66: 2456.752
A67: 18 | B67: 2025-06-01 | C67: =IF(A67<=$C$16,INDEX('CT - Tabela'!$C$5:$C$119,MATCH($G$29,'CT - Tabela'!$B$5:$B$119,0)),0) -> 1385.99 | D67: 0 | E67: =IF(A67<=$C$16,INDEX('CT - Tabela'!$D$5:$D$119,MATCH($G$29,'CT - Tabela'!$B$5:$B$119,0)),0) -> 20.11 | F67: =(C67+E67)/30*(2.5*COUNT($B$62:B67)) -> 703.05 | G67: 0 | H67: =(C67+E67)/30*(2.5*COUNT($B$62:B67)) -> 703.05 | I67: 0 | J67: 0 | K67: 313.5603 | L67: 13.8599 | M67: 2025 | N67: 98.427 | O67: 154.671 | P67: 2559.102
A68: 19 | B68: 2025-07-01 | C68: =IF(A68<=$C$16,INDEX('CT - Tabela'!$C$5:$C$119,MATCH($G$29,'CT - Tabela'!$B$5:$B$119,0)),0) -> 1385.99 | D68: 132 | E68: =IF(A68<=$C$16,INDEX('CT - Tabela'!$D$5:$D$119,MATCH($G$29,'CT - Tabela'!$B$5:$B$119,0)),0) -> 20.11 | F68: =(C68+E68)/30*(2.5*COUNT($B$62:B68)) -> 820.225 | G68: 0 | H68: =(C68+E68)/30*(2.5*COUNT($B$62:B68)) -> 820.225 | I68: 0 | J68: 0 | K68: 313.5603 | L68: 13.8599 | M68: 2025 | N68: 98.427 | O68: 154.671 | P68: 2925.452
A69: 20 | B69: 2025-08-01 | C69: =IF(A69<=$C$16,INDEX('CT - Tabela'!$C$5:$C$119,MATCH($G$29,'CT - Tabela'!$B$5:$B$119,0)),0) -> 1385.99 | D69: 132 | E69: =IF(A69<=$C$16,INDEX('CT - Tabela'!$D$5:$D$119,MATCH($G$29,'CT - Tabela'!$B$5:$B$119,0)),0) -> 20.11 | F69: =(C69+E69)/30*(2.5*COUNT($B$62:B69)) -> 937.4 | G69: 0 | H69: =(C69+E69)/30*(2.5*COUNT($B$62:B69)) -> 937.4 | I69: 0 | J69: 0 | K69: 313.5603 | L69: 13.8599 | M69: 2025 | N69: 98.427 | O69: 154.671 | P69: 3159.802
A70: 21 | B70: 2025-09-01 | C70: =IF(A70<=$C$16,INDEX('CT - Tabela'!$C$5:$C$119,MATCH($G$29,'CT - Tabela'!$B$5:$B$119,0)),0) -> 1385.99 | D70: 132 | E70: =IF(A70<=$C$16,INDEX('CT - Tabela'!$D$5:$D$119,MATCH($G$29,'CT - Tabela'!$B$5:$B$119,0)),0) -> 20.11 | F70: =(C70+E70)/30*(2.5*COUNT($B$62:B70)) -> 1054.575 | G70: 0 | H70: =(C70+E70)/30*(2.5*COUNT($B$62:B70)) -> 1054.575 | I70: 0 | J70: 0 | K70: 313.5603 | L70: 13.8599 | M70: 2025 | N70: 98.427 | O70: 154.671 | P70: 3394.152
A71: 22 | B71: 2025-10-01 | C71: =IF(A71<=$C$16,INDEX('CT - Tabela'!$C$5:$C$119,MATCH($G$29,'CT - Tabela'!$B$5:$B$119,0)),0) -> 1385.99 | D71: 132 | E71: =IF(A71<=$C$16,INDEX('CT - Tabela'!$D$5:$D$119,MATCH($G$29,'CT - Tabela'!$B$5:$B$119,0)),0) -> 20.11 | F71: =(C71+E71)/30*(2.5*COUNT($B$62:B71)) -> 1171.75 | G71: 0 | H71: =(C71+E71)/30*(2.5*COUNT($B$62:B71)) -> 1171.75 | I71: 0 | J71: 0 | K71: 313.5603 | L71: 13.8599 | M71: 2025 | N71: 98.427 | O71: 154.671 | P71: 3628.502
A72: 23 | B72: 2025-11-01 | C72: =IF(A72<=$C$16,INDEX('CT - Tabela'!$C$5:$C$119,MATCH($G$29,'CT - Tabela'!$B$5:$B$119,0)),0) -> 1385.99 | D72: 132 | E72: =IF(A72<=$C$16,INDEX('CT - Tabela'!$D$5:$D$119,MATCH($G$29,'CT - Tabela'!$B$5:$B$119,0)),0) -> 20.11 | F72: =(C72+E72)/30*(2.5*COUNT($B$62:B72)) -> 1288.925 | G72: 0 | H72: =(C72+E72)/30*(2.5*COUNT($B$62:B72)) -> 1288.925 | I72: 0 | J72: 0 | K72: 313.5603 | L72: 13.8599 | M72: 2025 | N72: 98.427 | O72: 154.671 | P72: 3862.852
A73: 24 | B73: 2025-12-01 | C73: =IF(A73<=$C$16,INDEX('CT - Tabela'!$C$5:$C$119,MATCH($G$29,'CT - Tabela'!$B$5:$B$119,0)),0) -> 1385.99 | D73: 132 | E73: =IF(A73<=$C$16,INDEX('CT - Tabela'!$D$5:$D$119,MATCH($G$29,'CT - Tabela'!$B$5:$B$119,0)),0) -> 20.11 | F73: =(C73+E73)/30*(2.5*COUNT($B$62:B73)) -> 1406.1 | G73: 1406.1 | H73: =(C73+E73)/30*(2.5*COUNT($B$62:B73)) -> 1406.1 | I73: 1406.1 | J73: 2217.584 | K73: 940.6809 | L73: 13.8599 | M73: 2025 | N73: 295.281 | O73: 464.013 | P73: 8620.79
B75: Total Ano 2 | C75: =SUM(C62:C73) -> 16631.88 | D75: =SUM(D62:D73) -> 1452 | E75: 241.32 | G75: 1406.1 | I75: 1406.1 | J75: =SUM(J62:J73) -> 2217.584 | K75: 4389.8442 | L75: 166.3188 | N75: =SUM(N62:N73) -> 1377.978 | O75: 2165.394 | P75: 38090.912
A77: =+A73+1 -> 25 | B77: =DATE(YEAR(B73),MONTH(B73)+1,DAY(B73)) -> 2026-01-01 | C77: =IF(A77<=$C$16,INDEX('CT - Tabela'!$C$5:$C$119,MATCH($G$29,'CT - Tabela'!$B$5:$B$119,0)),0) -> 0 | D77: =IF(AND(A77<=$C$16,MONTH(B77)<>6),22*6,0) -> 0 | E77: =IF(A77<=$C$16,INDEX('CT - Tabela'!$D$5:$D$119,MATCH($G$29,'CT - Tabela'!$B$5:$B$119,0)),0) -> 0 | F77: =(C77+E77)/30*(2.5*COUNT($B$77:B77)) -> 0 | G77: =IF(SUM($J$77:$J$88)=0,IF(MONTH(B77)=11,$F$88,0),IF(J77=0,0,F77)) -> 0 | H77: =(C77+E77)/30*(2.5*COUNT($B$77:B77)) -> 0 | I77: =IF(SUM($J$77:$J$88)=0,IF(MONTH(B77)=6,$H$88,0),IF(J77=0,0,H77)) -> 0 | J77: =IF(A77=$C$16,C77/30*2*fldDuracao,0) -> 0 | K77: =(C77+E77+G77+I77)*22.3% -> 0 | L77: =1%*C77 -> 0 | M77: =YEAR(B77) -> 2026 | N77: =((C77+E77+G77+I77+IF(J77>6500,J77-6500,0))*$C$33) -> 0 | O77: =(C77+E77+G77+I77)*$C$35 -> 0 | P77: =SUM(C77:J77)-SUM(N77:O77) -> 0
A78: =+A77+1 -> 26 | B78: =DATE(YEAR(B77),MONTH(B77)+1,DAY(B77)) -> 2026-02-01 | C78: =IF(A78<=$C$16,INDEX('CT - Tabela'!$C$5:$C$119,MATCH($G$29,'CT - Tabela'!$B$5:$B$119,0)),0) -> 0 | D78: 0 | E78: =IF(A78<=$C$16,INDEX('CT - Tabela'!$D$5:$D$119,MATCH($G$29,'CT - Tabela'!$B$5:$B$119,0)),0) -> 0 | F78: =(C78+E78)/30*(2.5*COUNT($B$77:B78)) -> 0 | G78: =IF(SUM($J$77:$J$88)=0,IF(MONTH(B78)=11,$F$88,0),IF(J78=0,0,F78)) -> 0 | H78: =(C78+E78)/30*(2.5*COUNT($B$77:B78)) -> 0 | I78: =IF(SUM($J$77:$J$88)=0,IF(MONTH(B78)=6,$H$88,0),IF(J78=0,0,H78)) -> 0 | J78: 0 | K78: 0 | L78: 0 | M78: 2026 | N78: 0 | O78: 0 | P78: 0
A79: =+A78+1 -> 27 | B79: =DATE(YEAR(B78),MONTH(B78)+1,DAY(B78)) -> 2026-03-01 | C79: =IF(A79<=$C$16,INDEX('CT - Tabela'!$C$5:$C$119,MATCH($G$29,'CT - Tabela'!$B$5:$B$119,0)),0) -> 0 | D79: 0 | E79: =IF(A79<=$C$16,INDEX('CT - Tabela'!$D$5:$D$119,MATCH($G$29,'CT - Tabela'!$B$5:$B$119,0)),0) -> 0 | F79: =(C79+E79)/30*(2.5*COUNT($B$77:B79)) -> 0 | G79: 0 | H79: =(C79+E79)/30*(2.5*COUNT($B$77:B79)) -> 0 | I79: 0 | J79: 0 | K79: 0 | L79: 0 | M79: 2026 | N79: 0 | O79: 0 | P79: 0
A80: 28 | B80: 2026-04-01 | C80: =IF(A80<=$C$16,INDEX('CT - Tabela'!$C$5:$C$119,MATCH($G$29,'CT - Tabela'!$B$5:$B$119,0)),0) -> 0 | D80: 0 | E80: =IF(A80<=$C$16,INDEX('CT - Tabela'!$D$5:$D$119,MATCH($G$29,'CT - Tabela'!$B$5:$B$119,0)),0) -> 0 | F80: =(C80+E80)/30*(2.5*COUNT($B$77:B80)) -> 0 | G80: 0 | H80: =(C80+E80)/30*(2.5*COUNT($B$77:B80)) -> 0 | I80: 0 | J80: 0 | K80: 0 | L80: 0 | M80: 2026 | N80: 0 | O80: 0 | P80: 0
A81: 29 | B81: 2026-05-01 | C81: =IF(A81<=$C$16,INDEX('CT - Tabela'!$C$5:$C$119,MATCH($G$29,'CT - Tabela'!$B$5:$B$119,0)),0) -> 0 | D81: 0 | E81: =IF(A81<=$C$16,INDEX('CT - Tabela'!$D$5:$D$119,MATCH($G$29,'CT - Tabela'!$B$5:$B$119,0)),0) -> 0 | F81: =(C81+E81)/30*(2.5*COUNT($B$77:B81)) -> 0 | G81: 0 | H81: =(C81+E81)/30*(2.5*COUNT($B$77:B81)) -> 0 | I81: 0 | J81: 0 | K81: 0 | L81: 0 | M81: 2026 | N81: 0 | O81: 0 | P81: 0
A82: 30 | B82: 2026-06-01 | C82: =IF(A82<=$C$16,INDEX('CT - Tabela'!$C$5:$C$119,MATCH($G$29,'CT - Tabela'!$B$5:$B$119,0)),0) -> 0 | D82: 0 | E82: =IF(A82<=$C$16,INDEX('CT - Tabela'!$D$5:$D$119,MATCH($G$29,'CT - Tabela'!$B$5:$B$119,0)),0) -> 0 | F82: =(C82+E82)/30*(2.5*COUNT($B$77:B82)) -> 0 | G82: 0 | H82: =(C82+E82)/30*(2.5*COUNT($B$77:B82)) -> 0 | I82: 0 | J82: 0 | K82: 0 | L82: 0 | M82: 2026 | N82: 0 | O82: 0 | P82: 0
A83: 31 | B83: 2026-07-01 | C83: =IF(A83<=$C$16,INDEX('CT - Tabela'!$C$5:$C$119,MATCH($G$29,'CT - Tabela'!$B$5:$B$119,0)),0) -> 0 | D83: 0 | E83: =IF(A83<=$C$16,INDEX('CT - Tabela'!$D$5:$D$119,MATCH($G$29,'CT - Tabela'!$B$5:$B$119,0)),0) -> 0 | F83: =(C83+E83)/30*(2.5*COUNT($B$77:B83)) -> 0 | G83: 0 | H83: =(C83+E83)/30*(2.5*COUNT($B$77:B83)) -> 0 | I83: 0 | J83: 0 | K83: 0 | L83: 0 | M83: 2026 | N83: 0 | O83: 0 | P83: 0
A84: 32 | B84: 2026-08-01 | C84: =IF(A84<=$C$16,INDEX('CT - Tabela'!$C$5:$C$119,MATCH($G$29,'CT - Tabela'!$B$5:$B$119,0)),0) -> 0 | D84: 0 | E84: =IF(A84<=$C$16,INDEX('CT - Tabela'!$D$5:$D$119,MATCH($G$29,'CT - Tabela'!$B$5:$B$119,0)),0) -> 0 | F84: =(C84+E84)/30*(2.5*COUNT($B$77:B84)) -> 0 | G84: 0 | H84: =(C84+E84)/30*(2.5*COUNT($B$77:B84)) -> 0 | I84: 0 | J84: 0 | K84: 0 | L84: 0 | M84: 2026 | N84: 0 | O84: 0 | P84: 0
A85: 33 | B85: 2026-09-01 | C85: =IF(A85<=$C$16,INDEX('CT - Tabela'!$C$5:$C$119,MATCH($G$29,'CT - Tabela'!$B$5:$B$119,0)),0) -> 0 | D85: 0 | E85: =IF(A85<=$C$16,INDEX('CT - Tabela'!$D$5:$D$119,MATCH($G$29,'CT - Tabela'!$B$5:$B$119,0)),0) -> 0 | F85: =(C85+E85)/30*(2.5*COUNT($B$77:B85)) -> 0 | G85: 0 | H85: =(C85+E85)/30*(2.5*COUNT($B$77:B85)) -> 0 | I85: 0 | J85: 0 | K85: 0 | L85: 0 | M85: 2026 | N85: 0 | O85: 0 | P85: 0
A86: 34 | B86: 2026-10-01 | C86: =IF(A86<=$C$16,INDEX('CT - Tabela'!$C$5:$C$119,MATCH($G$29,'CT - Tabela'!$B$5:$B$119,0)),0) -> 0 | D86: 0 | E86: =IF(A86<=$C$16,INDEX('CT - Tabela'!$D$5:$D$119,MATCH($G$29,'CT - Tabela'!$B$5:$B$119,0)),0) -> 0 | F86: =(C86+E86)/30*(2.5*COUNT($B$77:B86)) -> 0 | G86: 0 | H86: =(C86+E86)/30*(2.5*COUNT($B$77:B86)) -> 0 | I86: 0 | J86: 0 | K86: 0 | L86: 0 | M86: 2026 | N86: 0 | O86: 0 | P86: 0
A87: 35 | B87: 2026-11-01 | C87: =IF(A87<=$C$16,INDEX('CT - Tabela'!$C$5:$C$119,MATCH($G$29,'CT - Tabela'!$B$5:$B$119,0)),0) -> 0 | D87: 0 | E87: =IF(A87<=$C$16,INDEX('CT - Tabela'!$D$5:$D$119,MATCH($G$29,'CT - Tabela'!$B$5:$B$119,0)),0) -> 0 | F87: =(C87+E87)/30*(2.5*COUNT($B$77:B87)) -> 0 | G87: 0 | H87: =(C87+E87)/30*(2.5*COUNT($B$77:B87)) -> 0 | I87: 0 | J87: 0 | K87: 0 | L87: 0 | M87: 2026 | N87: 0 | O87: 0 | P87: 0
A88: 36 | B88: 2026-12-01 | C88: =IF(A88<=$C$16,INDEX('CT - Tabela'!$C$5:$C$119,MATCH($G$29,'CT - Tabela'!$B$5:$B$119,0)),0) -> 0 | D88: 0 | E88: =IF(A88<=$C$16,INDEX('CT - Tabela'!$D$5:$D$119,MATCH($G$29,'CT - Tabela'!$B$5:$B$119,0)),0) -> 0 | F88: =(C88+E88)/30*(2.5*COUNT($B$77:B88)) -> 0 | G88: 0 | H88: =(C88+E88)/30*(2.5*COUNT($B$77:B88)) -> 0 | I88: 0 | J88: 0 | K88: 0 | L88: 0 | M88: 2026 | N88: 0 | O88: 0 | P88: 0
B90: Total Ano 3 | C90: =SUM(C77:C88) -> 0 | D90: =SUM(D77:D88) -> 0 | E90: =SUM(E77:E88) -> 0 | G90: 0 | I90: 0 | J90: 0 | K90: 0 | L90: 0 | N90: =SUM(N77:N88) -> 0 | O90: 0 | P90: 0
B93: Resumo da Imputação ao Centro de Custos por Ano e Conta Económica
C95: Conta Económica | D95: =+YEAR(fldDatadeInicio) -> 2024 | E95: =+D95+1 -> 2025 | G95: =+E95+1 -> 2026 | I95: =+G95+1 -> 2027 | J95: Total
C97: Vencimento Base CE 010106 | D97: =SUMIF($M$47:$M$90,D$95,$C$47:$C$90) -> 16631.88 | E97: =SUMIF($M$47:$M$90,E$95,$C$47:$C$90) -> 16631.88 | G97: =SUMIF($M$47:$M$90,G$95,$C$47:$C$90) -> 0 | I97: =SUMIF($M$47:$M$90,I$95,$C$47:$C$90) -> 0 | J97: =SUM(D97:I97) -> 33263.76
C98: Subsídio de Alimentação CE 010113 | D98: =SUMIF($M$47:$M$90,D$95,$D$47:$D$90) -> 1452 | E98: =SUMIF($M$47:$M$90,E$95,$D$47:$D$90) -> 1452 | G98: =SUMIF($M$47:$M$90,G$95,$D$47:$D$90) -> 0 | I98: =SUMIF($M$47:$M$90,I$95,$D$47:$D$90) -> 0 | J98: =SUM(D98:I98) -> 2904
C99: Renum. Complementar CE 010213RC00 | D99: =SUMIF($M$47:$M$90,D$95,$E$47:$E$90) -> 241.32 | E99: =SUMIF($M$47:$M$90,E$95,$E$47:$E$90) -> 241.32 | G99: 0 | I99: 0 | J99: 482.64
C100: Subsídio de Natal CE 010114SN00 | D100: =SUMIF($M$47:$M$90,D$95,$G$47:$G$90) -> 1406.1 | E100: =SUMIF($M$47:$M$90,E$95,$G$47:$G$90) -> 1406.1 | G100: 0 | I100: 0 | J100: 2812.2
C101: Subsídio de Férias CE 010114SF00 | D101: =SUMIF($M$47:$M$90,D$95,$I$47:$I$90) -> 1406.1 | E101: =SUMIF($M$47:$M$90,E$95,$I$47:$I$90) -> 1406.1 | G101: 0 | I101: 0 | J101: 2812.2
C102: Compl. Termo Contrato CE 010212 | D102: =SUMIF($M$47:$M$90,D$95,$J$47:$J$90) -> 0 | E102: =SUMIF($M$47:$M$90,E$95,$J$47:$J$90) -> 2217.584 | G102: 0 | I102: 0 | J102: 2217.584
C103: Encargos Seg. Social CE 010305A0B0 | D103: =SUMIF($M$47:$M$90,D$95,$K$47:$K$90) -> 4389.8442 | E103: =SUMIF($M$47:$M$90,E$95,$K$47:$K$90) -> 4389.8442 | G103: 0 | I103: 0 | J103: 8779.6884
C104: Seguro de Ac. de Trab. CE 010309 | D104: =SUMIF($M$47:$M$90,D$95,$L$47:$L$90) -> 166.3188 | E104: =SUMIF($M$47:$M$90,E$95,$L$47:$L$90) -> 166.3188 | G104: =SUMIF($M$47:$M$90,G$95,$L$47:$L$90) -> 0 | I104: =SUMIF($M$47:$M$90,I$95,$L$47:$L$90) -> 0 | J104: 332.6376
C106: Total | D106: =SUM(D97:D104) -> 25693.563 | E106: =SUM(E97:E104) -> 27911.147 | G106: 0 | I106: 0 | J106: =SUM(J97:J104) -> 53604.71

Sheet ESTAGIAR
C3: SIMULADOR DE CUSTOS COM RECURSOS HUMANOS
C4: Programa ESTAGIAR
E6: Versão | F6: 2024-03-07
B8: Pressupostos do ESTAGIAR
B10: Conforme o Art.º 20.º do Regulamento dos Programas Estagiar, a FGF fica obrigada, após o período de estágio, à celebração de contrato a tempo completo por 1 ano, sem período experimental, com, pelo menos, 50% dos estagiários que iniciaram no mesmo mês.
B11: Assim, e de forma a cumprir com o exposto supra, será cabimentada verba para um ano de contrato. Na eventualidade de a FGF atingir a quota referida no Art.º 20.º, a verba poderá ser descabimentada.
B12: Neste contexto, e após usar este simulador, deverá o requerente usar, igualmente, o simulador para contratos de trabalho.
B14: Tipo de Estagiar | C14: Estagiar L
B16: Nos termos do Regulamento dos programas ESTAGIAR L, ESTAGIAR T e ESTAGIAR +:
B17: 1. O ESTAGIAR L destina-se a jovens recém-diplomados no ensino superior, detentores de nível VI, VII ou VIII do QNQ, que nunca tenham exercido funções na respetiva área de formação ao abrigo de contrato de trabalho, após a conclusão da respetiva formação.
B18: 2. O ESTAGIAR T destina-se a jovens recém-diplomados em cursos de qualificação profissional, nível IV ou V do QNQ, que nunca tenham exercido funções na respetiva área de formação ao abrigo de contrato de trabalho, após a conclusão da respetiva formação.
B19: 3. O ESTAGIAR + destina-se a jovens com qualificação igual ou inferior ao nível III do QNQ, inscritos no CQE há mais de três meses, quando estão à procura de primeiro emprego, ou jovens desempregados há mais de seis meses, quando estão à procura de novo emprego.
B21: Data de Início (Mês/Ano) | C21: 2024-01-01
B23: Pretende Prorrogação? | C23: Sim
B25: Os estágios têm a duração de 12 meses, incluindo um mês de descanso a gozar durante o 12.º mês de estágio, podendo ser prorrogados por um período de 3 meses.
B27: Posição Remuneratória | C27: =INDEX('Estagiar - Tabela'!$C$7:$C$9,MATCH(fldTipoDeBolseiro,'Estagiar - Tabela'!$B$7:$B$9,0)) -> 1076.25
B29: Estimativas
B31: O Seguro de Acidentes de Trabalho foi assumido como sendo 2% da compensação do ESTAGIAR, no entanto esse valor poderá variar conforme as condições de mercado.
B33: Data | C33: Compensação ESTAGIAR | D33: Encargos Seg. Social | E33: Seguro de Ac. de Trabalho
C34: CE 040802A000 | D34: CE 010305A0B0 | E34: CE 020212B000
A36: 1 | B36: =C21 -> 2024-01-01 | C36: 0 | D36: =$C$27*22.3% -> 240.00375 | E36: =1%*$C$27 -> 10.7625 | F36: =YEAR(B36) -> 2024
A37: =+A36+1 -> 2 | B37: =DATE(YEAR(B36),MONTH(B36)+1,DAY(B36)) -> 2024-02-01 | C37: 0 | D37: =$C$27*22.3% -> 240.00375 | E37: =1%*$C$27 -> 10.7625 | F37: =YEAR(B37) -> 2024
A38: =+A37+1 -> 3 | B38: =DATE(YEAR(B37),MONTH(B37)+1,DAY(B37)) -> 2024-03-01 | C38: 0 | D38: 240.00375 | E38: 10.7625 | F38: 2024
A39: 4 | B39: 2024-04-01 | C39: 0 | D39: 240.00375 | E39: 10.7625 | F39: 2024
A40: 5 | B40: 2024-05-01 | C40: 0 | D40: 240.00375 | E40: 10.7625 | F40: 2024
A41: 6 | B41: 2024-06-01 | C41: 0 | D41: 240.00375 | E41: 10.7625 | F41: 2024
A42: 7 | B42: 2024-07-01 | C42: 0 | D42: 240.00375 | E42: 10.7625 | F42: 2024
A43: 8 | B43: 2024-08-01 | C43: 0 | D43: 240.00375 | E43: 10.7625 | F43: 2024
A44: 9 | B44: 2024-09-01 | C44: 0 | D44: 240.00375 | E44: 10.7625 | F44: 2024
A45: 10 | B45: 2024-10-01 | C45: 0 | D45: 240.00375 | E45: 10.7625 | F45: 2024
A46: 11 | B46: 2024-11-01 | C46: 0 | D46: 240.00375 | E46: 10.7625 | F46: 2024
A47: 12 | B47: 2024-12-01 | C47: 0 | D47: 240.00375 | E47: 10.7625 | F47: 2024
B49: Total Ano 1 | C49: =SUM(C36:C47) -> 0 | D49: =SUM(D36:D47) -> 2880.045 | E49: =SUM(E36:E47) -> 129.15
B51: =DATE(YEAR(B47),MONTH(B47)+1,DAY(B47)) -> 2025-01-01 | C51: =IF(fldProrrogacao="Sim",fldPosicaoRemuneratoria*30%,0) -> 322.875 | D51: =IF(fldProrrogacao="Sim",$C$27*22.3%,0) -> 240.00375 | E51: =1%*$C$27 -> 10.7625 | F51: =YEAR(B51) -> 2025
B52: =DATE(YEAR(B51),MONTH(B51)+1,DAY(B51)) -> 2025-02-01 | C52: =IF(fldProrrogacao="Sim",fldPosicaoRemuneratoria*30%,0) -> 322.875 | D52: =IF(fldProrrogacao="Sim",$C$27*22.3%,0) -> 240.00375 | E52: 10.7625 | F52: 2025
B53: 2025-03-01 | C53: =IF(fldProrrogacao="Sim",fldPosicaoRemuneratoria*30%,0) -> 322.875 | D53: =IF(fldProrrogacao="Sim",$C$27*22.3%,0) -> 240.00375 | E53: 10.7625 | F53: 2025
B55: Total Prorrogação | C55: =SUM(C51:C53) -> 968.625 | D55: =SUM(D51:D53) -> 720.01125 | E55: =SUM(E51:E53) -> 32.2875
B57: Resumo da Imputação ao Centro de Custos por Ano e Conta Económica
B59: Conta Económica | C59: =YEAR(fldDatadeInicio) -> 2024 | D59: =+C59+1 -> 2025 | E59: =+D59+1 -> 2026 | F59: Total
B61: Compensação ESTAGIAR CE 040802A000 | C61: =SUMIF($F$36:$F$55,C$59,$C$36:$C$55) -> 0 | D61: =SUMIF($F$36:$F$55,D$59,$C$36:$C$55) -> 968.625 | E61: 0 | F61: =SUM(C61:E61) -> 968.625
B62: Encargos Seg. Social CE 010305A0B0 | C62: =SUMIF($F$36:$F$55,C$59,$D$36:$D$55) -> 2880.045 | D62: =SUMIF($F$36:$F$55,D$59,$D$36:$D$55) -> 720.01125 | E62: 0 | F62: =SUM(C62:E62) -> 3600.05625
B63: Seguro de Ac. de Trabalho CE 020212B000 | C63: =SUMIF($F$36:$F$55,C$59,$E$36:$E$55) -> 129.15 | D63: =SUMIF($F$36:$F$55,D$59,$E$36:$E$55) -> 32.2875 | E63: 0 | F63: 161.4375
B65: Total | C65: =SUM(C61:C63) -> 3009.195 | D65: =SUM(D61:D63) -> 1720.92375 | E65: 0 | F65: 4730.11875

Sheet Bolsa
C3: SIMULADOR DE CUSTOS COM RECURSOS HUMANOS
C4: Bolsa
D6: Versão | E6: 2024-03-07
B8: Pressupostos da Bolsa
B10: Uma vez que a FGF recebe financiamento da Fundação para a Ciência e Tecnologia (FCT), esta está obrigada a aplicar o Estatuto do Bolseiro de Investigação e o Regulamento de Bolsas de Investigação a todos os bolseiros, mesmo quando a respetiva bolsa não seja financiada diretamente pela FCT.
B12: Tipo de Bolsa | C12: Bolsa de Investigacao | D12: =IF(fldTipoDeBolseiro="Bolsa de Investigacao",fldTipoDeBolseiro&" - "&fldGrauAcademico,fldTipoDeBolseiro) -> Bolsa de Investigacao - Doutor
B14: Grau Académico do Bolseiro | C14: Doutor
B16: Data de Início (Mês/Ano) | C16: 2024-01-01
B18: As durações das bolsas encontram-se previstas nos Art.º 5º a 7º do Regulamento n.º 950/2019 da FCT e no Art.º 3º do Estatuto do Bolseiro de Investigação.
B19: Em regra, as bolsas têm uma duração entre 3 e 12 meses. Conforme a tipologia da bolsa, é possível a renovação - por exemplo, a bolsa de doutoramento pode ser renovada até atingir 4 anos.
B21: Posição Remuneratória | C21: =INDEX('Bolsas - Tabela'!$D$5:$D$10,MATCH(Bolsa!D12,'Bolsas - Tabela'!$F$5:$F$10,0)) -> 1801
B23: Indexante dos Apoios Sociais | C23: 509.26
B25: Estimativas
B27: As estimativas abaixo assumem que a bolsa terá uma duração de 12 meses. O Seguro Social Voluntário é opcional.
B28: O Seguro de Acidentes de Trabalho foi assumido como sendo 2% da compensação do ESTAGIAR, no entanto esse valor poderá variar conforme as condições de mercado.
B30: Data | C30: Valor da Bolsa | D30: Seguro Social Voluntário | E30: Seguro de Ac. de Trabalho
C31: CE 040802BE00 | D31: CE 010305A0O0 | E31: CE 020212B000
A33: 1 | B33: =C16 -> 2024-01-01 | C33: =fldPosicaoRemuneratoria -> 1801 | D33: =C23*29.6% -> 150.74096 | E33: =1%*C33 -> 18.01 | F33: =YEAR(B33) -> 2024
A34: =+A33+1 -> 2 | B34: =DATE(YEAR(B33),MONTH(B33)+1,DAY(B33)) -> 2024-02-01 | C34: =fldPosicaoRemuneratoria -> 1801 | D34: =+D33 -> 150.74096 | E34: =1%*C34 -> 18.01 | F34: =YEAR(B34) -> 2024
A35: =+A34+1 -> 3 | B35: =DATE(YEAR(B34),MONTH(B34)+1,DAY(B34)) -> 2024-03-01 | C35: 1801 | D35: =+D34 -> 150.74096 | E35: 18.01 | F35: 2024
A36: 4 | B36: 2024-04-01 | C36: 1801 | D36: 150.74096 | E36: 18.01 | F36: 2024
A37: 5 | B37: 2024-05-01 | C37: 1801 | D37: 150.74096 | E37: 18.01 | F37: 2024
A38: 6 | B38: 2024-06-01 | C38: 1801 | D38: 150.74096 | E38: 18.01 | F38: 2024
A39: 7 | B39: 2024-07-01 | C39: 1801 | D39: 150.74096 | E39: 18.01 | F39: 2024
A40: 8 | B40: 2024-08-01 | C40: 1801 | D40: 150.74096 | E40: 18.01 | F40: 2024
A41: 9 | B41: 2024-09-01 | C41: 1801 | D41: 150.74096 | E41: 18.01 | F41: 2024
A42: 10 | B42: 2024-10-01 | C42: 1801 | D42: 150.74096 | E42: 18.01 | F42: 2024
A43: 11 | B43: 2024-11-01 | C43: 1801 | D43: 150.74096 | E43: 18.01 | F43: 2024
A44: 12 | B44: 2024-12-01 | C44: 1801 | D44: 150.74096 | E44: 18.01 | F44: 2024
B46: Total Ano 1 | C46: =SUM(C33:C44) -> 21612 | D46: =SUM(D33:D44) -> 1808.89152 | E46: =SUM(E33:E44) -> 216.12
B48: Resumo da Imputação ao Centro de Custos por Ano e Conta Económica
B50: Conta Económica | C50: =YEAR(fldDatadeInicio) -> 2024 | D50: =+C50+1 -> 2025 | E50: Total
B52: Valor da Bolsa CE 040802BE00 | C52: =SUMIF($F$33:$F$44,C$50,$C$33:$C$44) -> 21612 | D52: =SUMIF($F$33:$F$44,D$50,$C$33:$C$44) -> 0 | E52: =SUM(C52:D52) -> 21612
B53: Seguro Social Voluntário CE 010305A0O0 | C53: =SUMIF($F$33:$F$44,C$50,$D$33:$D$44) -> 1808.89152 | D53: =SUMIF($F$33:$F$44,D$50,$D$33:$D$44) -> 0 | E53: =SUM(C53:D53) -> 1808.89152
B54: Seguro de Ac. de Trabalho CE 020212B000 | C54: =SUMIF($F$33:$F$44,C$50,$E$33:$E$44) -> 216.12 | D54: =SUMIF($F$33:$F$44,D$50,$E$33:$E$44) -> 0 | E54: 216.12
B56: Total | C56: =SUM(C52:C54) -> 23637.01152 | D56: =SUM(D52:D54) -> 0 | E56: 23637.01152

Sheet CT - Tabela (hidden)
A1: Tabela Remuneratória Única | I1: Tabela Remuneração Complementar
A2: Atualizada a 26/01/2024 | I2: Atualizada a 08/11/2023
B4: Posição | C4: Remuneração | D4: Remuneração | F4: Geral e AT | G4: TS | I4: Intervalo | K4: Percentagem | L4: Montante | M4: Acréscimo | N4: Total
B5: 1 | D5: =RemComplementar(C5) -> 80.45 | F5: =B5&" - "&ROUND(C5,2) -> 1 - 0 | J5: 769.2 | K5: 1 | L5: 80.45 | M5: 0 | N5: =ROUND(L5+M5,2) -> 80.45
B6: =+B5+1 -> 2 | D6: =RemComplementar(C6) -> 80.45 | F6: =B6&" - "&ROUND(C6,2) -> 2 - 0 | I6: =+J5+0.01 -> 769.21 | J6: 774.72 | K6: 0.9 | L6: =K6*$L$5 -> 72.405 | M6: 0 | N6: =ROUND(L6+M6,2) -> 72.41
B7: =+B6+1 -> 3 | D7: =RemComplementar(C7) -> 80.45 | F7: 3 - 0 | I7: =+J6+0.01 -> 774.73 | J7: 780.25 | K7: 0.85 | L7: =+K7*$L$5 -> 68.3825 | M7: 0 | N7: 68.38
B8: 4 | D8: =RemComplementar(C8) -> 80.45 | F8: 4 - 0 | I8: 780.26 | J8: 850.57 | K8: 0.8 | L8: 64.36 | M8: 0 | N8: 64.36
B9: 5 | C9: 821.83 | D9: =RemComplementar(C9) -> 64.36 | F9: 5 - 821,83 | I9: 850.58 | J9: 928.02 | K9: 0.7 | L9: 56.315 | M9: 0 | N9: 56.32
B10: 6 | C10: 869.84 | D10: =RemComplementar(C10) -> 56.32 | F10: 6 - 869,84 | I10: 928.03 | J10: 997.32 | K10: 0.6 | L10: 48.27 | M10: 0 | N10: 48.27
B11: 7 | C11: 922.47 | D11: =RemComplementar(C11) -> 56.32 | F11: 7 - 922,47 | I11: 997.33 | J11: 1121.65 | K11: 0.55 | L11: 44.2475 | M11: 0 | N11: 44.25
B12: 8 | C12: 961.4 | D12: =RemComplementar(C12) -> 48.27 | F12: 8 - 961,4 | I12: 1121.66 | J12: 1173.62 | K12: 0.45 | L12: 36.2025 | M12: 0 | N12: 36.2
B13: 9 | C13: 1017.56 | D13: =RemComplementar(C13) -> 44.25 | F13: 9 - 1017,56 | I13: 1173.63 | J13: 1208.27 | K13: 0.4 | L13: 32.18 | M13: 0 | N13: 32.18
B14: 10 | C14: 1070.19 | D14: =RemComplementar(C14) -> 44.25 | F14: 10 - 1070,19 | I14: 1208.28 | J14: 1295.91 | K14: 0.35 | L14: 28.1575 | M14: 0 | N14: 28.16
B15: 11 | C15: 1122.84 | D15: =RemComplementar(C15) -> 36.2 | F15: 11 - 1122,84 | I15: 1295.92 | J15: 1386.61 | K15: 0.25 | L15: 20.1125 | M15: 0 | N15: 20.11
B16: 12 | C16: 1175.46 | D16: =RemComplementar(C16) -> 32.18 | F16: 12 - 1175,46
B17: 13 | C17: 1228.09 | D17: =RemComplementar(C17) -> 28.16 | F17: 13 - 1228,09
B18: 14 | C18: 1280.72 | D18: =RemComplementar(C18) -> 28.16 | F18: 14 - 1280,72
B19: 15 | C19: 1333.35 | D19: =RemComplementar(C19) -> 20.11 | F19: 15 - 1333,35
B20: 16 | C20: 1385.99 | D20: =RemComplementar(C20) -> 20.11 | F20: 16 - 1385,99 | G20: =B20&" - "&ROUND(C20,2) -> 16 - 1385,99
B21: 17 | C21: 1438.62 | D21: =RemComplementar(C21) -> 0 | F21: 17 - 1438,62 | G21: =B21&" - "&ROUND(C21,2) -> 17 - 1438,62
B22: 18 | C22: 1491.25 | D22: =RemComplementar(C22) -> 0 | F22: 18 - 1491,25 | G22: 18 - 1491,25
B23: 19 | C23: 1543.88 | D23: =RemComplementar(C23) -> 0 | F23: 19 - 1543,88 | G23: 19 - 1543,88
B24: 20 | C24: 1596.52 | D24: =RemComplementar(C24) -> 0 | F24: 20 - 1596,52 | G24: 20 - 1596,52
B25: 21 | C25: 1649.15 | D25: =RemComplementar(C25) -> 0 | F25: 21 - 1649,15 | G25: 21 - 1649,15
B26: 22 | C26: 1701.78 | D26: =RemComplementar(C26) -> 0 | F26: 22 - 1701,78 | G26: 22 - 1701,78
B27: 23 | C27: 1754.41 | D27: =RemComplementar(C27) -> 0 | F27: 23 - 1754,41 | G27: 23 - 1754,41
B28: 24 | C28: 1807.04 | D28: =RemComplementar(C28) -> 0 | F28: 24 - 1807,04 | G28: 24 - 1807,04
B29: 25 | C29: 1861.25 | D29: =RemComplementar(C29) -> 0 | F29: 25 - 1861,25 | G29: 25 - 1861,25
B30: 26 | C30: 1915.46 | D30: =RemComplementar(C30) -> 0 | F30: 26 - 1915,46 | G30: 26 - 1915,46
B31: 27 | C31: 1969.68 | D31: =RemComplementar(C31) -> 0 | F31: 27 - 1969,68 | G31: 27 - 1969,68
B32: 28 | C32: 2023.89 | D32: =RemComplementar(C32) -> 0 | F32: 28 - 2023,89 | G32: 28 - 2023,89
B33: 29 | C33: 2078.11 | D33: =RemComplementar(C33) -> 0 | F33: 29 - 2078,11 | G33: 29 - 2078,11
B34: 30 | C34: 2132.32 | D34: =RemComplementar(C34) -> 0 | F34: 30 - 2132,32 | G34: 30 - 2132,32
B35: 31 | C35: 2186.53 | D35: =RemComplementar(C35) -> 0 | F35: 31 - 2186,53 | G35: 31 - 2186,53
B36: 32 | C36: 2240.74 | D36: =RemComplementar(C36) -> 0 | F36: 32 - 2240,74 | G36: 32 - 2240,74
B37: 33 | C37: 2294.95 | D37: =RemComplementar(C37) -> 0 | F37: 33 - 2294,95 | G37: 33 - 2294,95
B38: 34 | C38: 2349.15 | D38: =RemComplementar(C38) -> 0 | F38: 34 - 2349,15 | G38: 34 - 2349,15
B39: 35 | C39: 2403.37 | D39: =RemComplementar(C39) -> 0 | F39: 35 - 2403,37 | G39: 35 - 2403,37
B40: 36 | C40: 2457.57 | D40: =RemComplementar(C40) -> 0 | F40: 36 - 2457,57 | G40: 36 - 2457,57
B41: 37 | C41: 2511.81 | D41: =RemComplementar(C41) -> 0 | F41: 37 - 2511,81 | G41: 37 - 2511,81
B42: 38 | C42: 2566.01 | D42: =RemComplementar(C42) -> 0 | F42: 38 - 2566,01 | G42: 38 - 2566,01
B43: 39 | C43: 2620.23 | D43: =RemComplementar(C43) -> 0 | F43: 39 - 2620,23 | G43: 39 - 2620,23
B44: 40 | C44: 2674.43 | D44: =RemComplementar(C44) -> 0 | F44: 40 - 2674,43 | G44: 40 - 2674,43
B45: 41 | C45: 2728.65 | D45: =RemComplementar(C45) -> 0 | F45: 41 - 2728,65 | G45: 41 - 2728,65
B46: 42 | C46: 2783.21 | D46: =RemComplementar(C46) -> 0 | F46: 42 - 2783,21 | G46: 42 - 2783,21
B47: 43 | C47: 2838.52 | D47: =RemComplementar(C47) -> 0 | F47: 43 - 2838,52 | G47: 43 - 2838,52
B48: 44 | C48: 2893.81 | D48: =RemComplementar(C48) -> 0 | F48: 44 - 2893,81 | G48: 44 - 2893,81
B49: 45 | C49: 2949.11 | D49: =RemComplementar(C49) -> 0 | F49: 45 - 2949,11 | G49: 45 - 2949,11
B50: 46 | C50: 3004.4 | D50: =RemComplementar(C50) -> 0 | F50: 46 - 3004,4 | G50: 46 - 3004,4
B51: 47 | C51: 3059.69 | D51: =RemComplementar(C51) -> 0 | F51: 47 - 3059,69 | G51: 47 - 3059,69
B52: 48 | C52: 3114.98 | D52: =RemComplementar(C52) -> 0 | F52: 48 - 3114,98 | G52: 48 - 3114,98
B53: 49 | C53: 3170.28 | D53: =RemComplementar(C53) -> 0 | F53: 49 - 3170,28 | G53: 49 - 3170,28
B54: 50 | C54: 3225.58 | D54: =RemComplementar(C54) -> 0 | F54: 50 - 3225,58 | G54: 50 - 3225,58
B55: 51 | C55: 3280.88 | D55: =RemComplementar(C55) -> 0 | F55: 51 - 3280,88 | G55: 51 - 3280,88
B56: 52 | C56: 3336.16 | D56: =RemComplementar(C56) -> 0 | F56: 52 - 3336,16 | G56: 52 - 3336,16
B57: 53 | C57: 3391.46 | D57: =RemComplementar(C57) -> 0 | F57: 53 - 3391,46 | G57: 53 - 3391,46
B58: 54 | C58: 3446.76 | D58: =RemComplementar(C58) -> 0 | F58: 54 - 3446,76 | G58: 54 - 3446,76
B59: 55 | C59: 3502.05 | D59: =RemComplementar(C59) -> 0 | F59: 55 - 3502,05 | G59: 55 - 3502,05
B60: 56 | C60: 3557.35 | D60: =RemComplementar(C60) -> 0 | F60: 56 - 3557,35 | G60: 56 - 3557,35
B61: 57 | C61: 3612.64 | D61: =RemComplementar(C61) -> 0 | F61: 57 - 3612,64 | G61: 57 - 3612,64
B62: 58 | C62: 3667.94 | D62: =RemComplementar(C62) -> 0 | F62: 58 - 3667,94 | G62: 58 - 3667,94
B63: 59 | C63: 3723.24 | D63: =RemComplementar(C63) -> 0 | F63: 59 - 3723,24 | G63: 59 - 3723,24
B64: 60 | C64: 3778.53 | D64: =RemComplementar(C64) -> 0 | F64: 60 - 3778,53 | G64: 60 - 3778,53
B65: 61 | C65: 3833.82 | D65: =RemComplementar(C65) -> 0 | F65: 61 - 3833,82 | G65: 61 - 3833,82
B66: 62 | C66: 3889.1 | D66: =RemComplementar(C66) -> 0 | F66: 62 - 3889,1 | G66: 62 - 3889,1
B67: 63 | C67: 3944.44 | D67: =RemComplementar(C67) -> 0 | F67: 63 - 3944,44 | G67: 63 - 3944,44
B68: 64 | C68: 3999.72 | D68: =RemComplementar(C68) -> 0 | F68: 64 - 3999,72 | G68: 64 - 3999,72
B69: 65 | C69: 4055.02 | D69: =RemComplementar(C69) -> 0 | F69: 65 - 4055,02 | G69: 65 - 4055,02
B70: 66 | C70: 4110.3 | D70: =RemComplementar(C70) -> 0 | F70: =B70&" - "&ROUND(C70,2) -> 66 - 4110,3 | G70: 66 - 4110,3
B71: =+B70+1 -> 67 | C71: 4165.6 | D71: =RemComplementar(C71) -> 0 | F71: 67 - 4165,6 | G71: 67 - 4165,6
B72: 68 | C72: 4220.9 | D72: =RemComplementar(C72) -> 0 | F72: 68 - 4220,9 | G72: 68 - 4220,9
B73: 69 | C73: 4276.21 | D73: =RemComplementar(C73) -> 0 | F73: 69 - 4276,21 | G73: 69 - 4276,21
B74: 70 | C74: 4331.49 | D74: =RemComplementar(C74) -> 0 | F74: 70 - 4331,49 | G74: 70 - 4331,49
B75: 71 | C75: 4386.79 | D75: =RemComplementar(C75) -> 0 | F75: 71 - 4386,79 | G75: 71 - 4386,79
B76: 72 | C76: 4442.08 | D76: =RemComplementar(C76) -> 0 | F76: 72 - 4442,08 | G76: 72 - 4442,08
B77: 73 | C77: 4497.38 | D77: =RemComplementar(C77) -> 0 | F77: 73 - 4497,38 | G77: 73 - 4497,38
B78: 74 | C78: 4552.67 | D78: =RemComplementar(C78) -> 0 | F78: 74 - 4552,67 | G78: 74 - 4552,67
B79: 75 | C79: 4607.95 | D79: =RemComplementar(C79) -> 0 | F79: 75 - 4607,95 | G79: 75 - 4607,95
B80: 76 | C80: 4663.26 | D80: =RemComplementar(C80) -> 0 | F80: 76 - 4663,26 | G80: 76 - 4663,26
B81: 77 | C81: 4718.55 | D81: =RemComplementar(C81) -> 0 | F81: 77 - 4718,55 | G81: 77 - 4718,55
B82: 78 | C82: 4773.86 | D82: =RemComplementar(C82) -> 0 | F82: 78 - 4773,86 | G82: 78 - 4773,86
B83: 79 | C83: 4829.14 | D83: =RemComplementar(C83) -> 0 | F83: 79 - 4829,14 | G83: 79 - 4829,14
B84: 80 | C84: 4884.45 | D84: =RemComplementar(C84) -> 0 | F84: 80 - 4884,45 | G84: 80 - 4884,45
B85: 81 | C85: 4939.74 | D85: =RemComplementar(C85) -> 0 | F85: 81 - 4939,74 | G85: =B85&" - "&ROUND(C85,2) -> 81 - 4939,74
B86: 82 | C86: 4995.04 | D86: =RemComplementar(C86) -> 0 | F86: 82 - 4995,04 | G86: 82 - 4995,04
B87: 83 | C87: 5050.34 | D87: =RemComplementar(C87) -> 0 | F87: 83 - 5050,34 | G87: 83 - 5050,34
B88: 84 | C88: 5105.63 | D88: =RemComplementar(C88) -> 0 | F88: 84 - 5105,63 | G88: 84 - 5105,63
B89: 85 | C89: 5160.92 | D89: =RemComplementar(C89) -> 0 | F89: 85 - 5160,92 | G89: 85 - 5160,92
B90: 86 | C90: 5216.22 | D90: =RemComplementar(C90) -> 0 | F90: 86 - 5216,22 | G90: 86 - 5216,22
B91: 87 | C91: 5271.51 | D91: =RemComplementar(C91) -> 0 | F91: 87 - 5271,51 | G91: 87 - 5271,51
B92: 88 | C92: 5326.81 | D92: =RemComplementar(C92) -> 0 | F92: 88 - 5326,81 | G92: 88 - 5326,81
B93: 89 | C93: 5382.11 | D93: =RemComplementar(C93) -> 0 | F93: 89 - 5382,11 | G93: 89 - 5382,11
B94: 90 | C94: 5437.41 | D94: =RemComplementar(C94) -> 0 | F94: 90 - 5437,41 | G94: 90 - 5437,41
B95: 91 | C95: 5492.69 | D95: =RemComplementar(C95) -> 0 | F95: 91 - 5492,69 | G95: 91 - 5492,69
B96: 92 | C96: 5547.99 | D96: =RemComplementar(C96) -> 0 | F96: 92 - 5547,99 | G96: 92 - 5547,99
B97: 93 | C97: 5603.28 | D97: =RemComplementar(C97) -> 0 | F97: 93 - 5603,28 | G97: 93 - 5603,28
B98: 94 | C98: 5658.58 | D98: =RemComplementar(C98) -> 0 | F98: 94 - 5658,58 | G98: 94 - 5658,58
B99: 95 | C99: 5713.88 | D99: =RemComplementar(C99) -> 0 | F99: 95 - 5713,88 | G99: 95 - 5713,88
B100: 96 | C100: 5769.18 | D100: =RemComplementar(C100) -> 0 | F100: 96 - 5769,18 | G100: 96 - 5769,18
B101: 97 | C101: 5824.46 | D101: =RemComplementar(C101) -> 0 | F101: 97 - 5824,46 | G101: 97 - 5824,46
B102: 98 | C102: 5879.78 | D102: =RemComplementar(C102) -> 0 | F102: 98 - 5879,78 | G102: 98 - 5879,78
B103: 99 | C103: 5935.07 | D103: =RemComplementar(C103) -> 0 | F103: 99 - 5935,07 | G103: 99 - 5935,07
B104: 100 | C104: 5990.36 | D104: =RemComplementar(C104) -> 0 | F104: 100 - 5990,36 | G104: 100 - 5990,36
B105: 101 | C105: 6045.65 | D105: =RemComplementar(C105) -> 0 | F105: 101 - 6045,65 | G105: 101 - 6045,65
B106: 102 | C106: 6100.94 | D106: =RemComplementar(C106) -> 0 | F106: 102 - 6100,94 | G106: 102 - 6100,94
B107: 103 | C107: 6156.25 | D107: =RemComplementar(C107) -> 0 | F107: 103 - 6156,25 | G107: 103 - 6156,25
B108: 104 | C108: 6211.54 | D108: =RemComplementar(C108) -> 0 | F108: 104 - 6211,54 | G108: 104 - 6211,54
B109: 105 | C109: 6266.84 | D109: =RemComplementar(C109) -> 0 | F109: 105 - 6266,84 | G109: 105 - 6266,84
B110: 106 | C110: 6322.12 | D110: =RemComplementar(C110) -> 0 | F110: 106 - 6322,12 | G110: 106 - 6322,12
B111: 107 | C111: 6377.42 | D111: =RemComplementar(C111) -> 0 | F111: 107 - 6377,42 | G111: 107 - 6377,42
B112: 108 | C112: 6432.73 | D112: =RemComplementar(C112) -> 0 | F112: 108 - 6432,73 | G112: 108 - 6432,73
B113: 109 | C113: 6488.03 | D113: =RemComplementar(C113) -> 0 | F113: 109 - 6488,03 | G113: 109 - 6488,03
B114: 110 | C114: 6543.31 | D114: =RemComplementar(C114) -> 0 | F114: 110 - 6543,31 | G114: 110 - 6543,31
B115: 111 | C115: 6598.6 | D115: =RemComplementar(C115) -> 0 | F115: 111 - 6598,6 | G115: 111 - 6598,6
B116: 112 | C116: 6653.89 | D116: =RemComplementar(C116) -> 0 | F116: 112 - 6653,89 | G116: 112 - 6653,89
B117: 113 | C117: 6709.2 | D117: =RemComplementar(C117) -> 0 | F117: 113 - 6709,2 | G117: 113 - 6709,2
B118: 114 | C118: 6764.49 | D118: =RemComplementar(C118) -> 0 | F118: 114 - 6764,49 | G118: 114 - 6764,49
B119: 115 | C119: 6819.79 | D119: =RemComplementar(C119) -> 0 | F119: 115 - 6819,79 | G119: 115 - 6819,79

Sheet Bolsas - Tabela (hidden)
A1: Tabela de Bolsas da FCT
A2: Atualizada a 01/01/2023
B4: Tipo de Bolsa | C4: Grau | D4: Bolsa (Em Portugal)
B5: Bolsa de Pos-Doutoramento | D5: 1801 | F5: =B5 -> Bolsa de Pos-Doutoramento
B6: Bolsa de Doutoramento | D6: 1259.64 | F6: =B6 -> Bolsa de Doutoramento
B7: Bolsa de Investigacao | C7: Doutor | D7: 1801 | F7: =B7&" - "&C7 -> Bolsa de Investigacao - Doutor
B8: Bolsa de Investigacao | C8: Mestre | D8: 1259.64 | F8: =B8&" - "&C8 -> Bolsa de Investigacao - Mestre
B9: Bolsa de Investigacao | C9: Licenciado | D9: 990.98 | F9: =B9&" - "&C9 -> Bolsa de Investigacao - Licenciado
B10: Bolsa de Iniciacao Cientifica | D10: 601.12 | F10: =B10 -> Bolsa de Iniciacao Cientifica

Sheet Estagiar - Tabela (hidden)
A1: Tabela de Bolsas da FCT
A2: Atualizada a 01/01/2023
B4: RMMG-RAA | C4: 861
B6: Tipo de Estágio | C6: Bolsa (Em Portugal)
B7: Estagiar L | C7: =+$C$4*1.25 -> 1076.25
B8: Estagiar T | C8: =+$C$4*1.05 -> 904.05
B9: Estagiar + | C9: =+$C$4 -> 861

Sheet Listas (hidden)
B4: Tipo de Termo | D4: Categorias Profissionais | F4: Sim/Não | H4: Grau Académico | J4: Tipo de Bolsa | L4: Tipo de Estagiário
B5: Certo | D5: Tecnico Superior | F5: Sim | H5: Doutor | J5: Bolsa de Pos-Doutoramento | L5: Estagiar T
B6: Incerto | D6: Assistente Tecnico | F6: Nao | H6: Mestre | J6: Bolsa de Doutoramento | L6: Estagiar L
H7: Licenciado | J7: Bolsa de Investigacao | L7: Estagiar +
J8: Bolsa de Iniciacao Cientifica
